bitfinex-derivatives/quotes_BNBF0:USTF0_20250709
["timestamp","ask_amount","ask_price","bid_price","bid_amount"]
[1752097083144,3.34784399,667.48,666.76,1.55191596]
[1752097083349,3.34784399,667.48,666.77,1.55191596]
[1752097083550,3.34784399,667.49,666.78,1.55191596]
[1752097083749,3.34784399,667.49,666.79,1.55191596]
[1752097083951,3.34784399,667.49,666.8,1.55191596]
[1752097084152,3.34784399,667.49,666.81,1.55191596]
[1752097084447,3.34784399,667.49,666.82,1.55191596]
[1752097084651,3.34784399,667.49,666.83,1.55191596]
[1752097084849,3.34784399,667.49,666.84,1.55191596]
[1752097085052,3.34784399,667.49,666.85,1.55191596]
[1752097085251,3.34784399,667.49,666.72,2.745]
[1752097085252,3.34784399,667.49,666.86,1.55191596]
[1752097085448,3.34784399,667.49,666.72,2.745]
[1752097085449,3.34784399,667.48,666.87,1.55191596]
[1752097085652,3.34784399,667.48,666.88,1.55191596]
[1752097085850,3.34784399,667.48,666.89,1.55191596]
[1752097086055,3.34784399,667.48,666.9,1.55191596]
[1752097086250,3.34784399,667.49,666.91,1.55191596]
[1752097086453,3.34784399,667.49,666.92,1.55191596]
[1752097086662,3.34784399,667.49,666.93,1.55191596]
[1752097086850,3.34784399,667.48,666.72,2.745]
[1752097087054,3.34784399,667.48,666.73,1.55193316]
[1752097087256,3.34784399,667.48,666.74,1.55193316]
[1752097087451,3.34784399,667.48,666.75,1.55193316]
[1752097087651,3.34784399,667.48,666.76,1.55193316]
[1752097087952,3.34784399,667.48,666.77,1.55193316]
[1752097088152,3.34784399,667.48,666.78,1.55193316]
[1752097088352,3.34784399,667.48,666.79,1.55193316]
[1752097088653,3.34784399,667.48,666.8,1.55193316]
[1752097088854,3.34784399,667.48,666.81,1.55193316]
[1752097089055,3.34784399,667.48,666.82,1.55193316]
[1752097089255,3.34784399,667.48,666.83,1.55193316]
[1752097089555,3.34784399,667.61,666.84,1.55193316]
[1752097089750,3.34784399,667.61,666.85,1.55193316]
[1752097089952,3.34784399,667.61,666.86,1.55193316]
[1752097090153,3.34784399,667.61,666.87,1.55193316]
[1752097090357,3.34784399,667.62,666.88,1.55193316]
[1752097090555,3.34784399,667.66,666.89,1.55193316]
[1752097090754,3.34784399,667.66,666.9,1.55193316]
[1752097090957,3.34784399,667.66,666.91,1.55193316]
[1752097091154,3.34784399,667.67,666.92,1.55193316]
[1752097091358,3.34784399,667.67,666.93,1.55193316]
[1752097091655,3.34784399,667.67,666.94,1.55193316]
[1752097091953,3.34784399,667.67,666.95,1.55193316]
[1752097092158,3.34784399,667.67,666.96,1.55193316]
[1752097092356,3.34784399,667.67,666.97,1.55193316]
[1752097092556,3.34784399,667.67,666.98,1.55193316]
[1752097092760,3.34784399,667.67,666.99,1.55193316]
[1752097093060,3.34784399,667.67,667.0,1.55193316]
[1752097093257,3.34784399,667.67,666.72,2.745]
[1752097093461,3.34784399,667.66,666.73,1.55181952]
[1752097093661,3.34784399,667.66,666.74,1.55181952]
[1752097093862,3.34784399,667.66,666.75,1.55181952]
[1752097094059,3.34784399,667.66,666.76,1.55181952]
[1752097094259,3.34784399,667.67,666.77,1.55181952]
[1752097094463,3.34784399,667.67,666.78,1.55181952]
[1752097094661,3.34784399,667.67,666.79,1.55181952]
[1752097094861,3.34784399,667.67,666.8,1.55181952]
[1752097095066,3.34784399,667.67,666.81,1.55181952]
[1752097095263,3.34784399,667.67,666.82,1.55181952]
[1752097095462,3.34784399,667.67,666.83,1.55181952]
[1752097095666,3.34784399,667.67,666.84,1.55181952]
[1752097095962,3.34784399,667.67,666.85,1.55181952]
[1752097096164,3.34784399,667.67,666.86,1.55181952]
[1752097096363,3.34784399,667.67,666.87,1.55181952]
[1752097096564,3.34784399,667.67,666.88,1.55181952]
[1752097096764,3.34784399,667.67,666.89,1.55181952]
[1752097096964,3.34784399,667.67,666.9,1.55181952]
[1752097097169,3.34784399,667.67,666.91,1.55181952]
[1752097097367,3.34784399,667.67,666.92,1.55181952]
[1752097097668,3.34784399,667.67,666.93,1.55181952]
[1752097097964,3.34784399,667.67,666.94,1.55181952]
[1752097098164,3.34784399,667.67,666.95,1.55181952]
[1752097098365,3.34784399,667.67,666.96,1.55181952]
[1752097098568,3.34784399,667.67,666.97,1.55181952]
[1752097098769,3.34784399,667.68,666.98,1.55181952]
[1752097099065,3.34784399,667.68,666.99,1.55181952]
[1752097099265,3.34784399,667.55,667.0,1.55181952]
[1752097099470,3.34784399,667.55,666.76,1.68377259]
[1752097099665,3.34784399,667.55,666.77,1.55148397]
[1752097099865,3.34784399,667.55,666.78,1.55148397]
[1752097100065,3.34784399,667.56,666.79,1.55148397]
[1752097100363,3.34784399,667.56,666.8,1.55148397]
[1752097100568,3.34784399,667.56,666.81,1.55148397]
[1752097100765,3.34784399,667.56,666.82,1.55148397]
[1752097100967,3.34784399,667.56,666.83,1.55148397]
[1752097101169,3.34784399,667.57,666.84,1.55148397]
[1752097101371,5.57973999,668.11,666.85,1.55148397]
[1752097101372,3.34784399,667.55,666.85,1.55148397]
[1752097101571,3.34784399,667.55,666.86,1.55148397]
[1752097101769,3.34784399,667.55,666.87,1.55148397]
[1752097101968,3.34784399,667.55,666.88,1.55148397]
[1752097102168,3.34784399,667.55,666.89,1.55148397]
[1752097102368,3.34784399,667.55,666.9,1.55148397]
[1752097102567,3.34784399,667.55,666.91,1.55148397]
[1752097102773,3.34784399,667.55,666.92,1.55148397]
[1752097103075,3.34784399,667.55,666.93,1.55148397]
[1752097103274,3.34784399,667.56,666.94,1.55148397]
[1752097103471,3.34784399,667.56,666.95,1.55148397]
[1752097103774,3.34784399,667.58,666.96,1.55148397]
[1752097103975,3.34784399,667.58,666.97,1.55148397]
[1752097104271,3.34784399,667.58,666.98,1.55148397]
[1752097104472,3.34784399,667.58,666.72,4.42877259]
[1752097104675,3.34784399,667.58,666.73,1.55112276]
[1752097104970,3.34784399,667.58,666.74,1.55112276]
[1752097105174,3.34784399,667.58,666.75,1.55112276]
[1752097105470,3.34784399,667.58,666.76,1.55112276]
[1752097105674,3.34784399,667.58,666.77,1.55112276]
[1752097105869,3.34784399,667.58,666.78,1.55112276]
[1752097106170,3.34784399,667.58,666.79,1.55112276]
[1752097106375,3.34784399,667.57,666.8,1.55112276]
[1752097106575,3.34784399,667.57,666.81,1.55112276]
[1752097106770,3.34784399,667.57,666.82,1.55112276]
[1752097106976,3.34784399,667.57,666.83,1.55112276]
[1752097107178,3.34784399,667.57,666.84,1.55112276]
[1752097107377,3.34784399,667.63,666.85,1.55112276]
[1752097107577,3.34784399,667.61,666.86,1.55112276]
[1752097107877,3.34784399,667.61,666.87,1.55112276]
[1752097108072,3.34784399,667.61,666.88,1.55112276]
[1752097108273,0.26082069,667.43,666.89,1.55112276]
[1752097108475,0.26082069,667.43,666.9,1.55112276]
[1752097108673,0.26082069,667.43,666.91,1.55142606]
[1752097108874,0.26082069,667.43,666.92,1.55142606]
[1752097109177,0.26082069,667.43,666.93,1.55142606]
[1752097109377,0.26082069,667.43,666.94,1.55142606]
[1752097109574,0.26082069,667.43,666.95,1.55142606]
[1752097109778,0.26082069,667.43,666.96,1.55142606]
[1752097109978,0.26082069,667.43,666.97,1.55142606]
[1752097110278,0.26082069,667.43,666.72,2.745]
[1752097110479,0.26082069,667.43,666.73,1.55140275]
[1752097110680,0.26082069,667.43,666.74,1.55140275]
[1752097110880,0.26082069,667.43,666.75,1.55140275]
[1752097111078,0.26082069,667.43,666.76,1.55140275]
[1752097111275,0.26082069,667.43,666.77,1.55140275]
[1752097111475,0.26082069,667.43,666.78,1.55140275]
[1752097111678,0.26082069,667.43,666.79,1.55140275]
[1752097111876,0.26082069,667.43,666.8,1.55140275]
[1752097112076,0.26082069,667.43,666.81,1.55140275]
[1752097112277,0.26082069,667.43,666.82,1.55140275]
[1752097112481,0.26082069,667.43,666.83,1.55140275]
[1752097112680,0.26082069,667.43,666.84,1.55140275]
[1752097112879,0.26082069,667.43,666.85,1.55140275]
[1752097113084,0.26082069,667.43,666.86,1.55140275]
[1752097113280,0.26082069,667.43,666.87,1.55140275]
[1752097113481,0.26082069,667.43,666.88,1.55140275]
[1752097113682,0.26082069,667.43,666.89,1.55140275]
[1752097113881,0.26082069,667.43,666.9,1.55140275]
[1752097114085,0.26082069,667.43,666.91,1.55140275]
[1752097114383,0.26082069,667.43,666.92,1.55140275]
[1752097114586,0.26082069,667.43,666.93,1.55140275]
[1752097114788,0.26082069,667.43,666.94,1.55140275]
[1752097114989,0.26082069,667.43,666.95,1.55140275]
[1752097115285,0.26082069,667.43,666.96,1.55140275]
[1752097115489,0.26082069,667.43,666.97,1.55140275]
[1752097115686,0.26082069,667.43,666.98,1.55140275]
[1752097115985,0.26082069,667.43,666.99,1.55140275]
[1752097116190,0.26082069,667.43,666.73,1.68237656]
[1752097116389,0.26082069,667.43,666.74,1.55140638]
[1752097116589,0.26082069,667.43,666.75,1.55140638]
[1752097116885,0.26082069,667.43,666.76,1.55140638]
[1752097117086,0.26082069,667.43,666.77,1.55140638]
[1752097117289,0.26082069,667.43,666.78,1.55140638]
[1752097117487,0.26082069,667.43,666.79,1.55140638]
[1752097117687,0.26082069,667.43,666.8,1.55140638]
[1752097117889,0.26082069,667.43,666.81,1.55140638]
[1752097118088,0.26082069,667.43,666.82,1.55140638]
[1752097118286,0.26082069,667.43,666.83,1.55140638]
[1752097118587,0.26082069,667.43,666.84,1.55140638]
[1752097118786,0.26082069,667.43,666.85,1.55140638]
[1752097119089,0.26082069,667.43,666.86,1.55140638]
[1752097119288,0.26082069,667.43,666.87,1.55140638]
[1752097119490,0.26082069,667.43,666.88,1.55140638]
[1752097119692,0.26082069,667.43,666.89,1.55140638]
[1752097119889,0.26082069,667.43,666.9,1.55140638]
[1752097120088,0.26082069,667.43,666.91,1.55140638]
[1752097120292,0.26082069,667.43,666.92,1.55140638]
[1752097120492,0.26082069,667.43,666.93,1.55140638]
[1752097120694,0.26082069,667.43,666.94,1.55140638]
[1752097120994,0.26082069,667.43,666.95,1.55140638]
[1752097121191,0.26082069,667.43,666.96,1.55140638]
[1752097121394,0.26082069,667.43,666.97,1.55140638]
[1752097121594,0.26082069,667.43,666.98,1.55140638]
[1752097121891,0.26082069,667.43,666.99,1.55140638]
[1752097122198,0.26082069,667.43,667.0,1.55140638]
[1752097122497,0.26082069,667.43,667.01,1.55140638]
[1752097122698,0.26082069,667.43,667.02,1.55140638]
[1752097122895,0.26082069,667.43,667.03,1.55140638]
[1752097123094,0.26082069,667.43,666.72,2.745]
[1752097123394,0.26082069,667.43,666.73,1.55162816]
[1752097123592,0.26082069,667.43,666.72,2.745]
[1752097123593,0.26082069,667.43,666.74,1.55162816]
[1752097123795,0.26082069,667.43,666.75,1.55162816]
[1752097124005,0.26082069,667.43,666.76,1.55162816]
[1752097124196,0.26082069,667.43,666.77,1.55162816]
[1752097124398,0.26082069,667.43,666.78,1.55162816]
[1752097124596,0.26082069,667.43,666.79,1.55162816]
[1752097124798,0.26082069,667.43,666.8,1.55162816]
[1752097125002,0.26082069,667.43,666.81,1.55162816]
[1752097125201,0.26082069,667.43,666.82,1.55162816]
[1752097125501,0.26082069,667.43,666.83,1.55162816]
[1752097125702,0.26082069,667.43,666.84,1.55162816]
[1752097125902,0.26082069,667.43,666.85,1.55162816]
[1752097126100,0.26082069,667.43,666.86,1.55162816]
[1752097126298,0.26082069,667.43,666.87,1.55162816]
[1752097126498,0.26082069,667.43,666.88,1.55162816]
[1752097126699,0.26082069,667.43,666.89,1.55162816]
[1752097127001,0.26082069,667.43,666.9,1.55162816]
[1752097127199,0.26082069,667.43,666.91,1.55162816]
[1752097127410,0.26082069,667.43,666.92,1.55162816]
[1752097127600,0.26082069,667.43,666.93,1.55162816]
[1752097127800,0.26082069,667.43,666.94,1.55162816]
[1752097128003,0.26082069,667.43,666.95,1.55162816]
[1752097128210,0.26082069,667.43,666.96,1.55162816]
[1752097128404,0.26082069,667.43,666.97,1.55162816]
[1752097128704,0.26082069,667.43,666.98,1.55162816]
[1752097129001,0.26082069,667.43,666.99,1.55162816]
[1752097129209,0.26082069,667.43,667.0,1.55162816]
[1752097129403,0.26082069,667.43,667.01,1.55162816]
[1752097129602,0.26082069,667.43,667.02,1.55162816]
[1752097129809,0.26082069,667.43,667.03,1.55162816]
[1752097130004,0.26082069,667.43,667.04,1.55162816]
[1752097130205,0.26082069,667.43,667.05,1.55162816]
[1752097130502,0.26082069,667.43,667.06,1.55162816]
[1752097130705,0.26082069,667.43,667.07,1.55162816]
[1752097131006,0.26082069,667.43,667.08,1.55162816]
[1752097131205,0.26082069,667.43,667.09,1.55162816]
[1752097131401,0.26082069,667.43,667.1,1.55162816]
[1752097131704,0.26082069,667.43,667.11,1.55162816]
[1752097131901,0.26082069,667.43,667.12,1.55162816]
[1752097132107,0.26082069,667.43,667.13,1.55162816]
[1752097132306,0.26082069,667.43,667.14,1.55162816]
[1752097132501,0.26082069,667.43,667.15,1.55162816]
[1752097132706,0.26082069,667.43,667.16,1.55162816]
[1752097132904,0.26082069,667.43,667.17,1.55162816]
[1752097133214,0.26082069,667.43,667.18,1.55162816]
[1752097133404,0.26082069,667.43,666.96,2.941]
[1752097133601,0.26082069,667.43,666.97,1.5510747]
[1752097133803,0.26082069,667.43,666.98,1.5510747]
[1752097134003,0.26082069,667.43,666.99,1.5510747]
[1752097134203,0.26082069,667.43,667.0,1.5510747]
[1752097134407,0.26082069,667.43,667.01,1.5510747]
[1752097134607,0.26082069,667.43,667.02,1.5510747]
[1752097134808,0.26082069,667.43,667.03,1.5510747]
[1752097135009,0.26082069,667.43,667.04,1.5510747]
[1752097135205,0.26082069,667.43,667.05,1.5510747]
[1752097135506,0.26082069,667.43,667.06,1.5510747]
[1752097135704,0.26082069,667.43,667.07,1.5510747]
[1752097135909,0.26082069,667.43,667.08,1.5510747]
[1752097136110,0.26082069,667.43,667.09,1.5510747]
[1752097136311,0.26082069,667.43,667.1,1.5510747]
[1752097136512,0.26082069,667.43,667.11,1.5510747]
[1752097136712,0.26082069,667.43,666.96,2.941]
[1752097136713,0.26082069,667.43,667.12,1.5510747]
[1752097136913,0.26082069,667.43,667.13,1.5510747]
[1752097137210,3.34784399,667.75,667.14,1.5510747]
[1752097137409,3.34784399,667.74,667.15,1.5510747]
[1752097137612,3.34784399,667.74,666.96,2.941]
[1752097137613,3.34784399,667.74,667.16,1.5510747]
[1752097137812,3.34784399,667.74,666.96,2.941]
[1752097138011,3.34784399,667.74,666.97,1.5518901]
[1752097138210,3.34784399,667.74,666.98,1.5518901]
[1752097138514,3.34784399,667.77,666.99,1.5518901]
[1752097138709,3.34784399,667.77,667.0,1.5518901]
[1752097138912,3.34784399,667.77,667.01,1.5518901]
[1752097139112,3.34784399,667.77,666.96,2.941]
[1752097139113,3.34784399,667.77,667.02,1.5518901]
[1752097139416,3.34784399,667.77,667.03,1.5518901]
[1752097139617,3.34784399,667.77,667.04,1.5518901]
[1752097139816,3.34784399,667.78,667.05,1.5518901]
[1752097140013,3.34784399,667.79,667.06,1.5518901]
[1752097140216,3.34784399,667.79,667.07,1.5518901]
[1752097140512,3.34784399,667.79,667.08,1.5518901]
[1752097140710,3.34784399,667.8,667.09,1.5518901]
[1752097140915,3.34784399,667.88,667.1,1.5518901]
[1752097141112,3.34784399,667.88,667.11,1.5518901]
[1752097141316,3.34784399,667.86,667.12,1.5518901]
[1752097141516,3.34784399,667.86,667.13,1.5518901]
[1752097141713,3.34784399,667.87,667.14,1.5518901]
[1752097141913,3.34784399,667.87,667.15,1.5518901]
[1752097142117,3.34784399,667.88,667.16,1.5518901]
[1752097142316,3.34784399,667.9,667.17,1.5518901]
[1752097142516,3.34784399,667.93,667.18,1.5518901]
[1752097142712,3.34784399,667.93,667.19,1.5518901]
[1752097142919,3.34784399,667.93,667.2,1.5518901]
[1752097143115,3.34784399,667.93,667.21,1.5518901]
[1752097143313,3.34784399,667.94,667.22,1.5518901]
[1752097143514,3.34784399,667.95,667.23,1.5518901]
[1752097143717,3.34784399,667.94,667.24,1.5518901]
[1752097144021,3.34784399,667.94,667.0,1.68237656]
[1752097144225,3.34784399,667.96,667.01,1.55008267]
[1752097144420,3.34784399,667.96,667.02,1.55008267]
[1752097144715,3.34784399,667.96,667.03,1.55008267]
[1752097144918,3.34784399,667.96,667.04,1.55008267]
[1752097145118,3.34784399,667.96,667.05,1.55008267]
[1752097145421,3.34784399,667.98,667.06,1.55008267]
[1752097145617,3.34784399,667.98,667.07,1.55008267]
[1752097145823,3.34784399,667.98,667.08,1.55008267]
[1752097146023,3.34784399,667.98,667.09,1.55008267]
[1752097146223,3.34784399,667.99,667.1,1.55008267]
[1752097146521,3.34784399,667.99,667.11,1.55008267]
[1752097146721,3.34784399,667.99,667.12,1.55008267]
[1752097146923,3.34784399,667.99,667.13,1.55008267]
[1752097147122,3.34784399,667.99,667.14,1.55008267]
[1752097147320,3.34784399,668.0,667.15,1.55008267]
[1752097147619,3.34784399,668.01,667.16,1.55008267]
[1752097147920,3.34784399,668.01,667.0,1.68237656]
[1752097147921,3.34784399,668.01,667.17,1.55008267]
[1752097148234,3.34784399,667.98,667.18,1.55008267]
[1752097148419,3.34784399,667.98,667.19,1.55008267]
[1752097148620,0.26069857,667.81,667.2,1.55008267]
[1752097148820,0.26069857,667.81,667.21,1.55008267]
[1752097149019,0.26069857,667.81,667.22,1.55008267]
[1752097149323,0.26069857,667.81,667.23,1.55008267]
[1752097149523,0.26069857,667.81,667.24,1.55008267]
[1752097149819,0.26069857,667.81,667.25,1.55008267]
[1752097150024,0.26069857,667.81,667.26,1.55008267]
[1752097150323,0.26069857,667.81,667.27,1.55008267]
[1752097150524,0.26069857,667.81,667.28,1.55008267]
[1752097150825,0.26069857,667.81,667.29,1.55008267]
[1752097151022,0.26069857,667.81,667.3,1.55008267]
[1752097151223,0.26069857,667.81,667.31,1.55008267]
[1752097151521,0.26069857,667.81,667.05,1.68237656]
[1752097151719,0.26069857,667.81,667.06,1.54738359]
[1752097152021,0.26069857,667.81,667.07,1.54738359]
[1752097152222,0.26069857,667.81,667.08,1.54738359]
[1752097152423,0.26069857,667.81,667.09,1.54738359]
[1752097152719,0.26069857,667.81,667.06,1.68237656]
[1752097152720,0.26069857,667.81,667.1,1.54738359]
[1752097153019,0.26069857,667.81,667.11,1.54738359]
[1752097153219,0.26069857,667.81,667.12,1.54738359]
[1752097153524,0.26069857,667.81,667.13,1.54738359]
[1752097153723,0.26069857,667.81,667.14,1.54738359]
[1752097153923,0.26069857,667.81,667.15,1.54738359]
[1752097154226,0.26069857,667.81,667.16,1.54738359]
[1752097154424,0.26069857,667.81,667.17,1.54738359]
[1752097154622,0.26069857,667.81,667.18,1.54738359]
[1752097154821,0.26069857,667.81,667.19,1.54738359]
[1752097155020,0.26069857,667.81,667.2,1.54738359]
[1752097155220,0.26069857,667.81,667.21,1.54738359]
[1752097155519,0.26069857,667.81,667.22,1.54738359]
[1752097155719,0.26069857,667.81,667.23,1.54738359]
[1752097155919,0.26069857,667.81,667.24,1.54738359]
[1752097156120,0.26069857,667.81,667.25,1.54738359]
[1752097156320,0.26069857,667.81,667.26,1.54738359]
[1752097156520,0.26069857,667.81,667.04,1.68237656]
[1752097156521,0.26069857,667.81,667.27,1.54738359]
[1752097156825,0.26069857,667.81,667.04,1.68237656]
[1752097157024,0.26069857,667.81,667.05,1.54609489]
[1752097157221,0.26069857,667.81,667.06,1.54609489]
[1752097157424,0.26069857,667.81,667.07,1.54609489]
[1752097157624,0.26069857,667.81,667.08,1.54609489]
[1752097157825,0.26069857,667.81,667.09,1.54609489]
[1752097158022,0.26069857,667.81,667.1,1.54609489]
[1752097158322,0.26069857,667.81,667.11,1.54609489]
[1752097158526,0.26069857,667.81,667.12,1.54609489]
[1752097158725,0.26069857,667.81,667.13,1.54609489]
[1752097159019,0.26069857,667.81,667.14,1.54609489]
[1752097159226,0.26069857,667.81,667.15,1.54609489]
[1752097159428,0.26069857,667.81,667.16,1.54609489]
[1752097159625,0.26069857,667.81,667.17,1.54609489]
[1752097159824,0.26069857,667.81,667.05,1.68237656]
[1752097159825,0.26069857,667.81,667.18,1.54609489]
[1752097160021,0.26069857,667.81,667.19,1.54609489]
[1752097160220,0.26069857,667.81,667.2,1.54609489]
[1752097160427,0.26069857,667.81,667.21,1.54609489]
[1752097160630,0.26069857,667.81,667.22,1.54609489]
[1752097160925,0.26069857,667.81,667.23,1.54609489]
[1752097161224,0.26069857,667.81,667.24,1.54609489]
[1752097161424,0.26069857,667.81,667.25,1.54609489]
[1752097161624,0.26069857,667.81,667.26,1.54609489]
[1752097161928,0.26069857,667.81,667.27,3.74409489]
[1752097162129,0.26069857,667.81,667.28,1.54609489]
[1752097162329,0.26069857,667.81,667.27,2.198]
[1752097162330,0.26069857,667.81,667.29,1.54609489]
[1752097162624,0.26069857,667.81,667.3,1.54609489]
[1752097162829,0.26069857,667.81,667.27,2.198]
[1752097163025,0.26069857,667.81,667.28,1.5452908]
[1752097163229,0.26069857,667.81,667.29,1.5452908]
[1752097163427,0.26069857,667.81,667.3,1.5452908]
[1752097163629,0.26069857,667.81,667.27,2.198]
[1752097163826,0.26069857,667.81,667.28,1.54522393]
[1752097164029,0.26069857,667.81,667.29,1.54522393]
[1752097164230,0.26069857,667.81,667.3,1.54522393]
[1752097164430,0.26069857,667.81,667.27,2.198]
[1752097164725,0.26069857,667.81,667.28,1.54517511]
[1752097164925,0.26069857,667.81,667.29,1.54517511]
[1752097165129,0.26069857,667.81,667.3,1.54517511]
[1752097165327,0.26069857,667.81,667.27,2.198]
[1752097165528,0.26069857,667.81,667.28,1.54514387]
[1752097165828,0.26069857,667.81,667.29,1.54514387]
[1752097166023,0.26069857,667.81,667.27,2.198]
[1752097166227,0.26069857,667.81,667.28,1.54516945]
[1752097166426,0.26069857,667.81,667.29,1.54516945]
[1752097166626,0.26069857,667.81,667.27,2.198]
[1752097166825,0.26069857,667.81,667.28,1.54513165]
[1752097167129,0.26069857,667.81,667.29,1.54513165]
[1752097167325,0.26069857,667.81,667.27,2.198]
[1752097167526,0.26069857,667.81,667.28,1.54513902]
[1752097167725,0.26069857,667.81,667.29,1.54513902]
[1752097167925,0.26069857,667.81,667.27,2.198]
[1752097168131,0.26069857,667.81,667.28,1.54513902]
[1752097168326,0.26069857,667.81,667.29,1.54513902]
[1752097168530,0.26069857,667.81,667.27,2.198]
[1752097168727,0.26069857,667.81,667.28,1.54516367]
[1752097168928,0.26069857,667.81,667.27,2.198]
[1752097168929,0.26069857,667.81,667.29,1.54516367]
[1752097169228,0.26069857,667.81,667.27,2.198]
[1752097169430,0.26069857,667.81,667.28,1.54521362]
[1752097169633,0.26069857,667.81,667.29,1.54521362]
[1752097169833,0.26069857,667.81,667.3,1.54521362]
[1752097170034,0.26069857,667.81,667.27,2.198]
[1752097170329,0.26069857,667.81,667.28,1.54528518]
[1752097170534,0.26069857,667.81,667.29,1.54528518]
[1752097170734,0.26069857,667.81,667.3,1.54528518]
[1752097170935,0.26069857,667.81,667.27,2.198]
[1752097171231,0.26069857,667.81,667.28,1.54527656]
[1752097171430,0.26069857,667.81,667.29,1.54527656]
[1752097171634,0.26069857,667.81,667.27,2.198]
[1752097171934,0.26069857,667.81,667.28,1.54534426]
[1752097172131,0.26069857,667.81,667.29,1.54534426]
[1752097172336,0.26069857,667.81,667.27,2.198]
[1752097172532,0.26069857,667.81,667.28,1.54542994]
[1752097172736,0.26069857,667.81,667.29,1.54542994]
[1752097173037,0.26069857,667.81,667.27,2.198]
[1752097173232,0.26069857,667.81,667.28,1.545523]
[1752097173436,0.26069857,667.81,667.29,1.545523]
[1752097173632,0.26069857,667.81,667.27,2.198]
[1752097173837,0.26069857,667.81,667.28,1.54553485]
[1752097174132,0.26069857,667.81,667.29,1.54553485]
[1752097174337,0.26069857,667.81,667.27,2.198]
[1752097174637,0.26069857,667.81,667.28,1.54565855]
[1752097174933,0.26069857,667.81,667.29,1.54565855]
[1752097175130,0.26069857,667.81,667.27,2.198]
[1752097175333,0.26069857,667.81,667.28,1.54580233]
[1752097175539,0.26069857,667.81,667.29,1.54580233]
[1752097175738,0.26069857,667.81,667.27,2.198]
[1752097175938,0.26069857,667.81,667.28,1.54580233]
[1752097176140,0.26069857,667.81,667.29,1.54580233]
[1752097176340,0.26069857,667.81,667.27,2.198]
[1752097176536,0.26069857,667.81,667.28,1.54596664]
[1752097176742,0.26069857,667.81,667.29,1.54596664]
[1752097176936,0.26069857,667.81,667.27,2.198]
[1752097177136,0.26069857,667.81,667.28,1.54596664]
[1752097177436,0.26069857,667.81,667.29,1.54596664]
[1752097177742,0.26069857,667.81,667.27,2.198]
[1752097177940,0.26069857,667.81,667.28,1.54615234]
[1752097178139,0.26069857,667.81,667.29,1.54615234]
[1752097178340,0.26069857,667.81,667.27,2.198]
[1752097178641,0.26069857,667.81,667.28,1.54637811]
[1752097178936,0.26069857,667.81,667.29,1.54637811]
[1752097179137,0.26069857,667.81,667.27,2.198]
[1752097179344,0.26069857,667.81,667.28,1.54662013]
[1752097179538,0.26069857,667.81,667.29,1.54662013]
[1752097179738,0.26069857,667.81,667.27,2.198]
[1752097179937,0.26069857,667.81,667.28,1.54662024]
[1752097180243,0.26069857,667.81,667.27,2.198]
[1752097180244,0.26069857,667.81,667.29,1.54684117]
[1752097180443,0.26069857,667.81,667.27,2.198]
[1752097180740,0.26069857,667.81,667.28,1.54688597]
[1752097180939,0.26069857,667.81,667.29,1.54688597]
[1752097181242,0.26069857,667.81,667.27,2.198]
[1752097181442,0.26069857,667.81,667.28,1.54718141]
[1752097181643,0.26069857,667.81,667.29,1.54718141]
[1752097181841,0.26069857,667.81,667.27,2.198]
[1752097182044,0.26069857,667.81,667.28,1.54718141]
[1752097182245,0.26069857,667.81,667.29,1.54718141]
[1752097182545,0.26069857,667.81,667.27,2.198]
[1752097182745,0.26069857,667.81,667.28,1.54750701]
[1752097183044,0.26069857,667.81,667.29,1.54750701]
[1752097183246,0.26069857,667.81,667.27,2.198]
[1752097183453,0.26069857,667.81,667.28,1.54782902]
[1752097183647,0.26069857,667.81,667.29,1.54782902]
[1752097183850,0.26069857,667.81,667.27,2.198]
[1752097184152,0.26069857,667.81,667.28,1.54782902]
[1752097184354,0.26069857,667.81,667.29,1.54782902]
[1752097184554,0.26069857,667.81,667.27,2.198]
[1752097184754,0.26069857,667.81,667.28,1.54818388]
[1752097184953,0.26069857,667.81,667.29,1.54818388]
[1752097185154,0.26069857,667.81,667.27,2.198]
[1752097185352,0.26069857,667.81,667.28,1.54857606]
[1752097185555,0.26069857,667.81,667.29,1.54857606]
[1752097185753,0.26069857,667.81,667.27,2.198]
[1752097185957,0.26069857,667.81,667.28,1.54857606]
[1752097186158,0.26069857,667.81,667.29,1.54857606]
[1752097186352,0.26069857,667.81,667.27,2.198]
[1752097186558,0.26069857,667.81,667.28,1.54901169]
[1752097186858,0.26069857,667.81,667.29,1.54901169]
[1752097187158,0.26069857,667.81,667.27,2.198]
[1752097187353,0.26069857,667.81,667.28,1.54949951]
[1752097187657,0.26069857,667.81,667.29,1.54949951]
[1752097187856,0.26069857,667.81,667.27,2.198]
[1752097188056,0.26069857,667.81,667.28,1.54949951]
[1752097188254,0.26069857,667.81,667.29,1.54949951]
[1752097188455,0.26069857,667.81,667.27,2.198]
[1752097188655,0.26069857,667.81,667.28,1.55004824]
[1752097188958,0.26069857,667.81,667.29,1.55004824]
[1752097189155,0.26069857,667.81,667.27,2.198]
[1752097189354,0.26069857,667.81,667.28,1.55067989]
[1752097189558,0.26069857,667.81,667.29,1.55067989]
[1752097189759,0.26069857,667.81,667.3,1.55067989]